Department Family,Entity,Date Paid,Expense Type,Expenses Area,Supplier Name,Transaction Reference,Total,VAT Registration Number
Department of Health,Imperial College Healthcare NHS Trust,05/08/2014,Chx Pharmacy Stock,Stock,A A H Pharmaceuticals Limited,2976942,"118,263.60",Optional requirement only
Department of Health,Imperial College Healthcare NHS Trust,01/08/2014,Acton Housing Association,Housing Deductions,A2dominion Housing Group Ltd,2981104,"164,519.78",Optional requirement only
Department of Health,Imperial College Healthcare NHS Trust,12/08/2014,Clinical Managed Service Contr,Investigative Sciences & C S,Abbott Laboratories Ltd,2989319,"91,499.01",Optional requirement only
Department of Health,Imperial College Healthcare NHS Trust,12/08/2014,Laboratory Chemicals/ Reagents,Investigative Sciences & C S,Abbott Laboratories Ltd,2989319,"62,789.29",Optional requirement only
Department of Health,Imperial College Healthcare NHS Trust,07/08/2014,Consultancy Fees,Finance Directorate,Adviseinc Ltd,2978557,"38,640.00",Optional requirement only
Department of Health,Imperial College Healthcare NHS Trust,21/08/2014,Consultancy Fees,Other Hq Departments,Amsurg Corp,2993398,"75,000.00",Optional requirement only
Department of Health,Imperial College Healthcare NHS Trust,21/08/2014,Computer Hardware Purch,Finance Directorate,Avantec Ltd,2981869,"191,878.80",Optional requirement only
Department of Health,Imperial College Healthcare NHS Trust,26/08/2014,Prostheses,Investigative Sciences & C S,B Braun Medical Ltd,2983274,"36,884.60",Optional requirement only
Department of Health,Imperial College Healthcare NHS Trust,01/08/2014,Dialysers,Division Of Medicine,Baxter Healthcare Ltd,2974114,"57,299.00",Optional requirement only
Department of Health,Imperial College Healthcare NHS Trust,07/08/2014,Hh Pharmacy Stock,Stock,Baxter Healthcare Ltd,2980560,"61,600.00",Optional requirement only
Department of Health,Imperial College Healthcare NHS Trust,07/08/2014,Hh Pharmacy Stock,Stock,Baxter Healthcare Ltd,2980565,"30,800.00",Optional requirement only
Department of Health,Imperial College Healthcare NHS Trust,01/08/2014,Jac - Stock,Stock,Bayer Plc,2974393,"51,391.20",Optional requirement only
Department of Health,Imperial College Healthcare NHS Trust,21/08/2014,Jac - Stock,Stock,Bayer Plc,2988933,"56,110.80",Optional requirement only
Department of Health,Imperial College Healthcare NHS Trust,05/08/2014,Lab Equip Maint / Repairs,Investigative Sciences & C S,Beckman Coulter Uk Ltd,2973124,"48,604.49",Optional requirement only
Department of Health,Imperial College Healthcare NHS Trust,21/08/2014,Med & Surg Maint Contract,Investigative Sciences & C S,Beckman Coulter Uk Ltd,2978142,"32,469.38",Optional requirement only
Department of Health,Imperial College Healthcare NHS Trust,05/08/2014,Ext Contr Laundry,Directorate Of Strategy,Berendsen Uk Limited,2983848,"52,085.43",Optional requirement only
Department of Health,Imperial College Healthcare NHS Trust,01/08/2014,Purch Hcare Independent Sector,Other Hq Departments,Bmi Healthcare  Services Ltd,2890211,"190,870.20",Optional requirement only
Department of Health,Imperial College Healthcare NHS Trust,07/08/2014,Agency Admin & Clerical,Division Of Women And Children,Brook Street Uk Ltd,2984546,"43,959.55",Optional requirement only
Department of Health,Imperial College Healthcare NHS Trust,12/08/2014,Agency Admin & Clerical,Division Of Women And Children,Brook Street Uk Ltd,2988631,"34,797.84",Optional requirement only
Department of Health,Imperial College Healthcare NHS Trust,21/08/2014,Agency Admin & Clerical,Division Of Women And Children,Brook Street Uk Ltd,2991596,"34,094.73",Optional requirement only
Department of Health,Imperial College Healthcare NHS Trust,07/08/2014,Agency Admin & Clerical,Information & Comms Technology,Brook Street Uk Ltd,2984546,"33,377.41",Optional requirement only
Department of Health,Imperial College Healthcare NHS Trust,12/08/2014,Agency Admin & Clerical,Information & Comms Technology,Brook Street Uk Ltd,2988631,"31,403.19",Optional requirement only
Department of Health,Imperial College Healthcare NHS Trust,07/08/2014,Agency Admin & Clerical,Investigative Sciences & C S,Brook Street Uk Ltd,2984546,"47,811.14",Optional requirement only
Department of Health,Imperial College Healthcare NHS Trust,12/08/2014,Agency Admin & Clerical,Investigative Sciences & C S,Brook Street Uk Ltd,2988631,"45,924.30",Optional requirement only
Department of Health,Imperial College Healthcare NHS Trust,21/08/2014,Agency Admin & Clerical,Investigative Sciences & C S,Brook Street Uk Ltd,2991596,"45,480.63",Optional requirement only
Department of Health,Imperial College Healthcare NHS Trust,12/08/2014,It Eqpt-Additions,Capital Summary,Bt Global Services,2973382,"154,232.00",Optional requirement only
Department of Health,Imperial College Healthcare NHS Trust,12/08/2014,Hh Pharmacy Stock,Stock,Bupa Home Healthcare,2980674,"37,420.30",Optional requirement only
Department of Health,Imperial College Healthcare NHS Trust,12/08/2014,Hh Pharmacy Stock,Stock,Bupa Home Healthcare,2980675,"47,742.00",Optional requirement only
Department of Health,Imperial College Healthcare NHS Trust,21/08/2014,Hh Pharmacy Stock,Stock,Bupa Home Healthcare,2991313,"103,232.00",Optional requirement only
Department of Health,Imperial College Healthcare NHS Trust,21/08/2014,Hh Pharmacy Stock,Stock,Bupa Home Healthcare,2991314,"44,298.80",Optional requirement only
Department of Health,Imperial College Healthcare NHS Trust,26/08/2014,Hh Pharmacy Stock,Stock,Bupa Home Healthcare,2989552,"63,942.00",Optional requirement only
Department of Health,Imperial College Healthcare NHS Trust,26/08/2014,"Books, Journals & Subscr",Finance Directorate,Care Quality Commission,2983817,"117,875.00",Optional requirement only
Department of Health,Imperial College Healthcare NHS Trust,05/08/2014,Laboratory Equipment,Investigative Sciences & C S,Cellpath,2964999,"87,093.60",Optional requirement only
Department of Health,Imperial College Healthcare NHS Trust,26/08/2014,Drugs Nhs,Division Of Medicine,Central & North West London,2978449,"25,377.29",Optional requirement only
Department of Health,Imperial College Healthcare NHS Trust,01/08/2014,Nhs Pay Recharge In: Nursing,Division Of Medicine,Central London Community Healthcare Nhs Trust,2937416,"292,695.00",Optional requirement only
Department of Health,Imperial College Healthcare NHS Trust,07/08/2014,Services Received - Nhsts,Investigative Sciences & C S,Central London Community Healthcare Nhs Trust,2972965,"34,335.00",Optional requirement only
Department of Health,Imperial College Healthcare NHS Trust,07/08/2014,Services Received - Nhsts,Investigative Sciences & C S,Central London Community Healthcare Nhs Trust,2972966,"37,002.00",Optional requirement only
Department of Health,Imperial College Healthcare NHS Trust,01/08/2014,Patients Appl: Purchase,"Surg, Canc & Cardiovasc Div",Chas A Blatchford And Sons Ltd,2980794,"38,820.43",Optional requirement only
Department of Health,Imperial College Healthcare NHS Trust,21/08/2014,Patients Appl: Purchase,"Surg, Canc & Cardiovasc Div",Chas A Blatchford And Sons Ltd,2978420,"46,259.60",Optional requirement only
Department of Health,Imperial College Healthcare NHS Trust,21/08/2014,Patients Appl: Purchase,"Surg, Canc & Cardiovasc Div",Chas A Blatchford And Sons Ltd,2979900,"35,473.79",Optional requirement only
Department of Health,Imperial College Healthcare NHS Trust,09/08/2014,Rates,Directorate Of Strategy,City Of Westminster,2985553,"116,464.00",Optional requirement only
Department of Health,Imperial College Healthcare NHS Trust,12/08/2014,Childcare Voucher (Kids Unltd),Childcare Vouchers,Computershare Voucher Services,2985209,"69,024.04",Optional requirement only
Department of Health,Imperial College Healthcare NHS Trust,26/08/2014,Gas,Directorate Of Strategy,Corona Energy,2994127,"79,864.67",Optional requirement only
Department of Health,Imperial College Healthcare NHS Trust,26/08/2014,Gas,Directorate Of Strategy,Corona Energy,2994128,"62,758.60",Optional requirement only
Department of Health,Imperial College Healthcare NHS Trust,26/08/2014,Gas,Directorate Of Strategy,Corona Energy,2994132,"49,184.51",Optional requirement only
Department of Health,Imperial College Healthcare NHS Trust,01/08/2014,Chx Pharmacy Stock,Stock,Csl Behring Uk Ltd,2969772,"33,480.00",Optional requirement only
Department of Health,Imperial College Healthcare NHS Trust,21/08/2014,Chx Pharmacy Stock,Stock,Csl Behring Uk Ltd,2990487,"33,480.00",Optional requirement only
Department of Health,Imperial College Healthcare NHS Trust,12/08/2014,Hh Pharmacy Stock,Stock,Csl Behring Uk Ltd,2980644,"66,960.00",Optional requirement only
Department of Health,Imperial College Healthcare NHS Trust,05/08/2014,Med & Surg Maint Contract,"Surg, Canc & Cardiovasc Div",De Lage Landen Leasing Limited,2981453,"77,275.87",Optional requirement only
Department of Health,Imperial College Healthcare NHS Trust,26/08/2014,Ext Contr Logistics,Directorate Of Strategy,Dhl (Former Excel),2997152,"159,486.56",Optional requirement only
Department of Health,Imperial College Healthcare NHS Trust,21/08/2014,Ext Contract - Patient Travel,Directorate Of Strategy,Dhl (Former Excel),2994778,"54,616.35",Optional requirement only
Department of Health,Imperial College Healthcare NHS Trust,21/08/2014,Ext Contract - Patient Travel,Division Of Medicine,Dhl (Former Excel),2992679,"108,520.96",Optional requirement only
Department of Health,Imperial College Healthcare NHS Trust,21/08/2014,Ext Contract - Patient Travel,"Surg, Canc & Cardiovasc Div",Dhl (Former Excel),2992679,"584,063.22",Optional requirement only
Department of Health,Imperial College Healthcare NHS Trust,26/08/2014,Hopper Service,Directorate Of Strategy,Dhl (Former Excel),2996495,"32,200.00",Optional requirement only
Department of Health,Imperial College Healthcare NHS Trust,21/08/2014,Other Transport Costs,Investigative Sciences & C S,Dhl (Former Excel),2992637,"87,913.88",Optional requirement only
Department of Health,Imperial College Healthcare NHS Trust,26/08/2014,Transcription Services,Division Of Medicine,Dictate It Ltd,2996716,"34,479.99",Optional requirement only
Department of Health,Imperial College Healthcare NHS Trust,26/08/2014,Transcription Services,"Surg, Canc & Cardiovasc Div",Dictate It Ltd,2996715,"36,379.81",Optional requirement only
Department of Health,Imperial College Healthcare NHS Trust,14/08/2014,Electricity,Directorate Of Strategy,Edf Energy,2990272,"241,040.23",Optional requirement only
Department of Health,Imperial College Healthcare NHS Trust,14/08/2014,Electricity,Directorate Of Strategy,Edf Energy,2990273,"259,622.76",Optional requirement only
Department of Health,Imperial College Healthcare NHS Trust,14/08/2014,Electricity,Directorate Of Strategy,Edf Energy,2990276,"34,828.80",Optional requirement only
Department of Health,Imperial College Healthcare NHS Trust,14/08/2014,Electricity,Directorate Of Strategy,Edf Energy,2990280,"87,743.71",Optional requirement only
Department of Health,Imperial College Healthcare NHS Trust,01/08/2014,Hh Pharmacy Stock,Stock,Evolution Homecare Services Limited,2980689,"47,806.39",Optional requirement only
Department of Health,Imperial College Healthcare NHS Trust,01/08/2014,Hh Pharmacy Stock,Stock,Evolution Homecare Services Limited,2980701,"90,793.70",Optional requirement only
Department of Health,Imperial College Healthcare NHS Trust,01/08/2014,Hh Pharmacy Stock,Stock,Evolution Homecare Services Limited,2981074,"28,658.76",Optional requirement only
Department of Health,Imperial College Healthcare NHS Trust,05/08/2014,Hh Pharmacy Stock,Stock,Evolution Homecare Services Limited,2981073,"64,527.95",Optional requirement only
Department of Health,Imperial College Healthcare NHS Trust,05/08/2014,Hh Pharmacy Stock,Stock,Evolution Homecare Services Limited,2981438,"59,943.21",Optional requirement only
Department of Health,Imperial College Healthcare NHS Trust,05/08/2014,Hh Pharmacy Stock,Stock,Evolution Homecare Services Limited,2981440,"30,443.62",Optional requirement only
Department of Health,Imperial College Healthcare NHS Trust,05/08/2014,Hh Pharmacy Stock,Stock,Evolution Homecare Services Limited,2981678,"25,170.05",Optional requirement only
Department of Health,Imperial College Healthcare NHS Trust,05/08/2014,Hh Pharmacy Stock,Stock,Evolution Homecare Services Limited,2982043,"50,981.18",Optional requirement only
Department of Health,Imperial College Healthcare NHS Trust,05/08/2014,Hh Pharmacy Stock,Stock,Evolution Homecare Services Limited,2982186,"37,531.36",Optional requirement only
Department of Health,Imperial College Healthcare NHS Trust,07/08/2014,Hh Pharmacy Stock,Stock,Evolution Homecare Services Limited,2966082,"27,995.87",Optional requirement only
Department of Health,Imperial College Healthcare NHS Trust,07/08/2014,Hh Pharmacy Stock,Stock,Evolution Homecare Services Limited,2985212,"45,799.59",Optional requirement only
Department of Health,Imperial College Healthcare NHS Trust,21/08/2014,Hh Pharmacy Stock,Stock,Evolution Homecare Services Limited,2990452,"88,401.21",Optional requirement only
Department of Health,Imperial College Healthcare NHS Trust,21/08/2014,Hh Pharmacy Stock,Stock,Evolution Homecare Services Limited,2991306,"125,002.45",Optional requirement only
Department of Health,Imperial College Healthcare NHS Trust,21/08/2014,Hh Pharmacy Stock,Stock,Evolution Homecare Services Limited,2991307,"38,864.22",Optional requirement only
Department of Health,Imperial College Healthcare NHS Trust,26/08/2014,Hh Pharmacy Stock,Stock,Evolution Homecare Services Limited,2991251,"53,157.30",Optional requirement only
Department of Health,Imperial College Healthcare NHS Trust,26/08/2014,Hh Pharmacy Stock,Stock,Evolution Homecare Services Limited,2993779,"34,336.38",Optional requirement only
Department of Health,Imperial College Healthcare NHS Trust,07/08/2014,P & M-Additions-Purchased,Capital Summary,Fujifilm Sonosite Ltd,2945006,"25,670.00",Optional requirement only
Department of Health,Imperial College Healthcare NHS Trust,07/08/2014,P & M-Additions-Purchased,Capital Summary,Fujifilm Sonosite Ltd,2973472,"45,681.00",Optional requirement only
Department of Health,Imperial College Healthcare NHS Trust,26/08/2014,Buildings-Additions-Purchased,Capital Summary,G&M Builders Contractors (Essex) Ltd,2964157,"30,000.00",Optional requirement only
Department of Health,Imperial College Healthcare NHS Trust,26/08/2014,Chx Pharmacy Stock,Stock,Genzyme Therapeutics Ltd,2987503,"42,270.00",Optional requirement only
Department of Health,Imperial College Healthcare NHS Trust,21/08/2014,Hh Pharmacy Stock,Stock,Gilead Sciences Ltd,2981594,"37,972.80",Optional requirement only
Department of Health,Imperial College Healthcare NHS Trust,01/08/2014,Jac - Stock,Stock,Gilead Sciences Ltd,2977075,"41,979.53",Optional requirement only
Department of Health,Imperial College Healthcare NHS Trust,21/08/2014,Jac - Stock,Stock,Gilead Sciences Ltd,2989017,"69,965.88",Optional requirement only
Department of Health,Imperial College Healthcare NHS Trust,21/08/2014,Contr Refuse & Clin Waste,Directorate Of Strategy,Grundon Waste Management Ltd,2993465,"32,521.09",Optional requirement only
Department of Health,Imperial College Healthcare NHS Trust,26/08/2014,Drugs Nhs,"Surg, Canc & Cardiovasc Div",Healthcare At Home Ltd,2994519,"220,799.10",Optional requirement only
Department of Health,Imperial College Healthcare NHS Trust,05/08/2014,Drugs Pbr Excluded,"Surg, Canc & Cardiovasc Div",Healthcare At Home Ltd,2977425,"37,780.51",Optional requirement only
Department of Health,Imperial College Healthcare NHS Trust,12/08/2014,Drugs Pbr Excluded,"Surg, Canc & Cardiovasc Div",Healthcare At Home Ltd,2979370,"124,915.55",Optional requirement only
Department of Health,Imperial College Healthcare NHS Trust,21/08/2014,Drugs Pbr Excluded,"Surg, Canc & Cardiovasc Div",Healthcare At Home Ltd,2983643,"126,660.36",Optional requirement only
Department of Health,Imperial College Healthcare NHS Trust,26/08/2014,Drugs Pbr Excluded,"Surg, Canc & Cardiovasc Div",Healthcare At Home Ltd,2991110,"70,817.26",Optional requirement only
Department of Health,Imperial College Healthcare NHS Trust,26/08/2014,Drugs Pbr Excluded,"Surg, Canc & Cardiovasc Div",Healthcare At Home Ltd,2991257,"77,237.37",Optional requirement only
Department of Health,Imperial College Healthcare NHS Trust,26/08/2014,Drugs Pbr Excluded,"Surg, Canc & Cardiovasc Div",Healthcare At Home Ltd,2994168,"161,054.47",Optional requirement only
Department of Health,Imperial College Healthcare NHS Trust,26/08/2014,Hh Pharmacy Stock,Stock,Healthcare At Home Ltd,2987165,"55,848.69",Optional requirement only
Department of Health,Imperial College Healthcare NHS Trust,26/08/2014,Hh Pharmacy Stock,Stock,Healthcare At Home Ltd,2987168,"96,882.50",Optional requirement only
Department of Health,Imperial College Healthcare NHS Trust,21/08/2014,Chx Pharmacy Stock,Stock,Healthcare Product Services Ltd,2987677,"442,056.00",Optional requirement only
Department of Health,Imperial College Healthcare NHS Trust,05/08/2014,Consultancy Fees,Information & Comms Technology,Ideal Health Consultants Ltd,2933854,"33,858.00",Optional requirement only
Department of Health,Imperial College Healthcare NHS Trust,01/08/2014,Hh Pharmacy Stock,Stock,Idis Limited,2981147,"63,081.60",Optional requirement only
Department of Health,Imperial College Healthcare NHS Trust,05/08/2014,Hh Pharmacy Stock,Stock,Idis Limited,2982010,"31,545.60",Optional requirement only
Department of Health,Imperial College Healthcare NHS Trust,21/08/2014,Hh Pharmacy Stock,Stock,Idis Limited,2990422,"31,545.60",Optional requirement only
Department of Health,Imperial College Healthcare NHS Trust,07/08/2014,Decontamination Services,Directorate Of Strategy,Ihss Ltd,2968060,"317,796.94",Optional requirement only
Department of Health,Imperial College Healthcare NHS Trust,01/08/2014,Dist Award - Local Cea,Division Of Medicine,Imperial College,2980840,"30,555.31",Optional requirement only
Department of Health,Imperial College Healthcare NHS Trust,01/08/2014,Dist Award - Local Cea,Division Of Women And Children,Imperial College,2980840,"26,775.05",Optional requirement only
Department of Health,Imperial College Healthcare NHS Trust,01/08/2014,Dist Award - Local Cea,Investigative Sciences & C S,Imperial College,2980840,"34,572.09",Optional requirement only
Department of Health,Imperial College Healthcare NHS Trust,01/08/2014,Dist Award - Local Cea,"Surg, Canc & Cardiovasc Div",Imperial College,2980840,"40,166.73",Optional requirement only
Department of Health,Imperial College Healthcare NHS Trust,01/08/2014,Dist Award - Nat Cea,Division Of Medicine,Imperial College,2980840,"52,993.75",Optional requirement only
Department of Health,Imperial College Healthcare NHS Trust,01/08/2014,Dist Award - Nat Cea,"Surg, Canc & Cardiovasc Div",Imperial College,2980840,"44,313.38",Optional requirement only
Department of Health,Imperial College Healthcare NHS Trust,01/08/2014,Ic Pay Recharge In: Med,Division Of Medicine,Imperial College,2980840,"77,780.93",Optional requirement only
Department of Health,Imperial College Healthcare NHS Trust,01/08/2014,Ic Pay Recharge In: Med,Division Of Medicine,Imperial College,2980841,"129,209.77",Optional requirement only
Department of Health,Imperial College Healthcare NHS Trust,21/08/2014,Ic Pay Recharge In: Med,Division Of Medicine,Imperial College,2725795,"31,696.01",Optional requirement only
Department of Health,Imperial College Healthcare NHS Trust,01/08/2014,Ic Pay Recharge In: Med,Division Of Women And Children,Imperial College,2980841,"57,742.00",Optional requirement only
Department of Health,Imperial College Healthcare NHS Trust,01/08/2014,Ic Pay Recharge In: Med,Investigative Sciences & C S,Imperial College,2980841,"52,124.65",Optional requirement only
Department of Health,Imperial College Healthcare NHS Trust,01/08/2014,Ic Pay Recharge In: Med,Medical Director Summary,Imperial College,2980840,"31,370.04",Optional requirement only
Department of Health,Imperial College Healthcare NHS Trust,12/08/2014,Ic Pay Recharge In: Med,Rd Iscs Division,Imperial College,2970482,"38,636.07",Optional requirement only
Department of Health,Imperial College Healthcare NHS Trust,01/08/2014,Ic Pay Recharge In: Med,"Surg, Canc & Cardiovasc Div",Imperial College,2980840,"73,801.49",Optional requirement only
Department of Health,Imperial College Healthcare NHS Trust,01/08/2014,Ic Pay Recharge In: Med,"Surg, Canc & Cardiovasc Div",Imperial College,2980841,"224,531.98",Optional requirement only
Department of Health,Imperial College Healthcare NHS Trust,21/08/2014,Medical Gases,Investigative Sciences & C S,Imperial College,2976525,"27,117.71",Optional requirement only
Department of Health,Imperial College Healthcare NHS Trust,21/08/2014,Other Research Exp - Non-Pay,Rd Surgery & Cancer Division,Imperial College,2979904,"32,273.05",Optional requirement only
Department of Health,Imperial College Healthcare NHS Trust,26/08/2014,Other Research Exp - Non-Pay,Rd Surgery & Cancer Division,Imperial College,2947159,"129,893.19",Optional requirement only
Department of Health,Imperial College Healthcare NHS Trust,21/08/2014,Other Research Exp - Pay,Rd Iscs Division,Imperial College,2975778,"33,628.48",Optional requirement only
Department of Health,Imperial College Healthcare NHS Trust,26/08/2014,Other Research Exp - Pay,Rd Surgery & Cancer Division,Imperial College,2947159,"73,207.82",Optional requirement only
Department of Health,Imperial College Healthcare NHS Trust,21/08/2014,Other Research Exp - Pay,Rdwomen And Children Division,Imperial College,2974774,"48,677.18",Optional requirement only
Department of Health,Imperial College Healthcare NHS Trust,26/08/2014,Other Incoming Resources,Investigative Sciences & C S,Imperial College Healthcare Charity,2975012,"148,069.00",Optional requirement only
Department of Health,Imperial College Healthcare NHS Trust,26/08/2014,Agency Senior Manager,Directorate Of Strategy,Interim Partners Ltd,2982537,"31,200.00",Optional requirement only
Department of Health,Imperial College Healthcare NHS Trust,21/08/2014,Buildings-Additions-Purchased,Capital Summary,J.C. Watson Refrigeration,2991502,"56,971.20",Optional requirement only
Department of Health,Imperial College Healthcare NHS Trust,26/08/2014,Clinical Managed Service Contr,Investigative Sciences & C S,Leica Microsystems (Uk) Ltd,2983524,"69,220.21",Optional requirement only
Department of Health,Imperial College Healthcare NHS Trust,21/08/2014,Med & Prof Fees (Imaging Cons),Stock,Lindo Wing Radiology Llp,2992685,"97,130.75",Optional requirement only
Department of Health,Imperial College Healthcare NHS Trust,01/08/2014,Drugs Nhs,Investigative Sciences & C S,Lloyds Retail Chemists Ltd,2980699,"2,242,569.20",Optional requirement only
Department of Health,Imperial College Healthcare NHS Trust,14/08/2014,Drugs Nhs,Investigative Sciences & C S,Lloyds Retail Chemists Ltd,2980698,"2,347,011.80",Optional requirement only
Department of Health,Imperial College Healthcare NHS Trust,26/08/2014,Other Research Exp - Non-Pay,Rd Medical Directorate,London Ambulance Service Nhs Trust,2983846,"27,687.00",Optional requirement only
Department of Health,Imperial College Healthcare NHS Trust,01/08/2014,Gp Salaried Doctors,Division Of Medicine,London Central & West Unscheduled Care Collab,2980837,"44,114.43",Optional requirement only
Department of Health,Imperial College Healthcare NHS Trust,05/08/2014,Gp Salaried Doctors,Division Of Medicine,London Central & West Unscheduled Care Collab,2935844,"43,928.56",Optional requirement only
Department of Health,Imperial College Healthcare NHS Trust,05/08/2014,Gp Salaried Doctors,Division Of Medicine,London Central & West Unscheduled Care Collab,2975371,"43,928.56",Optional requirement only
Department of Health,Imperial College Healthcare NHS Trust,05/08/2014,Gp Salaried Doctors,Division Of Medicine,London Central & West Unscheduled Care Collab,2975372,"43,928.56",Optional requirement only
Department of Health,Imperial College Healthcare NHS Trust,05/08/2014,Gp Salaried Doctors,Division Of Medicine,London Central & West Unscheduled Care Collab,2975375,"43,928.56",Optional requirement only
Department of Health,Imperial College Healthcare NHS Trust,12/08/2014,Gp Salaried Doctors,Division Of Medicine,London Central & West Unscheduled Care Collab,2980715,"77,827.05",Optional requirement only
Department of Health,Imperial College Healthcare NHS Trust,01/08/2014,Gp Sessional Doctors,Division Of Medicine,London Central & West Unscheduled Care Collab,2980837,"138,607.03",Optional requirement only
Department of Health,Imperial College Healthcare NHS Trust,01/08/2014,Pfh Admin Staff,Division Of Medicine,London Central & West Unscheduled Care Collab,2980837,"44,494.65",Optional requirement only
Department of Health,Imperial College Healthcare NHS Trust,01/08/2014,Purch Hcare Independent Sector,Division Of Medicine,London Central & West Unscheduled Care Collab,2980837,"113,505.26",Optional requirement only
Department of Health,Imperial College Healthcare NHS Trust,26/08/2014,Hh Pharmacy Stock,Stock,Mallinckrodt Uk Commercial Ltd,2993644,"64,800.00",Optional requirement only
Department of Health,Imperial College Healthcare NHS Trust,21/08/2014,Clinical Managed Service Contr,"Surg, Canc & Cardiovasc Div",Medtronic Ltd,2981464,"969,030.18",Optional requirement only
Department of Health,Imperial College Healthcare NHS Trust,26/08/2014,Srvcsrecd-Other Nhs,Investigative Sciences & C S,Micropathology Ltd,2986185,"25,260.00",Optional requirement only
Department of Health,Imperial College Healthcare NHS Trust,12/08/2014,Blood Products,Investigative Sciences & C S,Nhs Blood And Transplant,2974440,"320,085.60",Optional requirement only
Department of Health,Imperial College Healthcare NHS Trust,12/08/2014,Blood Products,Investigative Sciences & C S,Nhs Blood And Transplant,2974617,"63,341.28",Optional requirement only
Department of Health,Imperial College Healthcare NHS Trust,26/08/2014,Blood Products,Investigative Sciences & C S,Nhs Blood And Transplant,2996259,"320,085.60",Optional requirement only
Department of Health,Imperial College Healthcare NHS Trust,26/08/2014,Services Received - Nhsts,Investigative Sciences & C S,Nhs Blood And Transplant,2986837,"31,768.85",Optional requirement only
Department of Health,Imperial College Healthcare NHS Trust,26/08/2014,Fp10s,Investigative Sciences & C S,Nhs Business Services Authority,2993177,"38,503.17",Optional requirement only
Department of Health,Imperial College Healthcare NHS Trust,22/08/2014,Cnst Contributions,Division Of Women And Children,Nhs Litigation Authority,2993417,"577,854.40",Optional requirement only
Department of Health,Imperial College Healthcare NHS Trust,22/08/2014,Cnst Contributions,Other Hq Departments,Nhs Litigation Authority,2993417,"1,039,441.40",Optional requirement only
Department of Health,Imperial College Healthcare NHS Trust,22/08/2014,Insurance Costs,Directorate Of Strategy,Nhs Litigation Authority,2993418,"45,940.50",Optional requirement only
Department of Health,Imperial College Healthcare NHS Trust,12/08/2014,Gross Redundancy Payments,Other Hq Departments,Nhs Pension Agency,2964022,"64,135.75",Optional requirement only
Department of Health,Imperial College Healthcare NHS Trust,01/08/2014,Rent,Directorate Of Strategy,Nhs Property Services Ltd,2955354,"70,212.95",Optional requirement only
Department of Health,Imperial College Healthcare NHS Trust,01/08/2014,Rent,Directorate Of Strategy,Nhs Property Services Ltd,2955355,"91,374.96",Optional requirement only
Department of Health,Imperial College Healthcare NHS Trust,26/08/2014,Med & Surg Maint Contract,Investigative Sciences & C S,Nhs Supply Chain,2989732,"40,773.50",Optional requirement only
Department of Health,Imperial College Healthcare NHS Trust,01/08/2014,Supplies Issues Recharges,Stock,Nhs Supply Chain,2978454,"89,570.75",Optional requirement only
Department of Health,Imperial College Healthcare NHS Trust,01/08/2014,Supplies Issues Recharges,Stock,Nhs Supply Chain,2978455,"83,531.63",Optional requirement only
Department of Health,Imperial College Healthcare NHS Trust,01/08/2014,Supplies Issues Recharges,Stock,Nhs Supply Chain,2978456,"93,992.16",Optional requirement only
Department of Health,Imperial College Healthcare NHS Trust,07/08/2014,Supplies Issues Recharges,Stock,Nhs Supply Chain,2983422,"102,923.17",Optional requirement only
Department of Health,Imperial College Healthcare NHS Trust,07/08/2014,Supplies Issues Recharges,Stock,Nhs Supply Chain,2983423,"76,862.61",Optional requirement only
Department of Health,Imperial College Healthcare NHS Trust,07/08/2014,Supplies Issues Recharges,Stock,Nhs Supply Chain,2983424,"66,352.42",Optional requirement only
Department of Health,Imperial College Healthcare NHS Trust,14/08/2014,Supplies Issues Recharges,Stock,Nhs Supply Chain,2987681,"70,126.00",Optional requirement only
Department of Health,Imperial College Healthcare NHS Trust,14/08/2014,Supplies Issues Recharges,Stock,Nhs Supply Chain,2987682,"106,438.71",Optional requirement only
Department of Health,Imperial College Healthcare NHS Trust,14/08/2014,Supplies Issues Recharges,Stock,Nhs Supply Chain,2987683,"79,440.68",Optional requirement only
Department of Health,Imperial College Healthcare NHS Trust,14/08/2014,Supplies Issues Recharges,Stock,Nhs Supply Chain,2990306,"70,836.83",Optional requirement only
Department of Health,Imperial College Healthcare NHS Trust,21/08/2014,Supplies Issues Recharges,Stock,Nhs Supply Chain,2993193,"107,781.40",Optional requirement only
Department of Health,Imperial College Healthcare NHS Trust,21/08/2014,Supplies Issues Recharges,Stock,Nhs Supply Chain,2993194,"77,804.68",Optional requirement only
Department of Health,Imperial College Healthcare NHS Trust,21/08/2014,Supplies Issues Recharges,Stock,Nhs Supply Chain,2993195,"76,584.40",Optional requirement only
Department of Health,Imperial College Healthcare NHS Trust,07/08/2014,Other Research Exp - Non-Pay,Rd Medical Directorate,North West London Hospitals Nhs Trust,2968151,"282,880.00",Optional requirement only
Department of Health,Imperial College Healthcare NHS Trust,07/08/2014,Jac - Stock,Stock,Novartis Pharmaceutical (Uk) Ltd,2977044,"40,611.36",Optional requirement only
Department of Health,Imperial College Healthcare NHS Trust,21/08/2014,P & M-Additions-Purchased,Capital Summary,Olympus Keymed,2989063,"45,851.53",Optional requirement only
Department of Health,Imperial College Healthcare NHS Trust,01/08/2014,Buildings-Add(Prof Fee)-Purch,Capital Summary,Pa Consulting Services Ltd,2966267,"32,712.00",Optional requirement only
Department of Health,Imperial College Healthcare NHS Trust,01/08/2014,Consultancy Fees,Nhs Elect,Pathways For Health Llp,2979695,"48,000.00",Optional requirement only
Department of Health,Imperial College Healthcare NHS Trust,26/08/2014,Interpreting Services,Investigative Sciences & C S,Pearl Linguistics Ltd,2986597,"33,716.15",Optional requirement only
Department of Health,Imperial College Healthcare NHS Trust,26/08/2014,Lab Equip Maint / Repairs,"Surg, Canc & Cardiovasc Div",Pharmagraph-Aquisition Systems,2984990,"35,563.20",Optional requirement only
Department of Health,Imperial College Healthcare NHS Trust,26/08/2014,Computer Software/License,Medical Director Summary,Premier It Ltd,2996769,"41,652.00",Optional requirement only
Department of Health,Imperial College Healthcare NHS Trust,21/08/2014,Hospitality,Press & Communications,Principal Hayley Ltd,2978237,"33,670.55",Optional requirement only
Department of Health,Imperial College Healthcare NHS Trust,01/08/2014,Agency Nursing: Qualified,Division Of Medicine,Reed,2979346,"32,129.45",Optional requirement only
Department of Health,Imperial College Healthcare NHS Trust,01/08/2014,Agency Nursing: Qualified,Division Of Women And Children,Reed,2979346,"44,877.94",Optional requirement only
Department of Health,Imperial College Healthcare NHS Trust,01/08/2014,Agency Nursing: Qualified,Investigative Sciences & C S,Reed,2979346,"35,106.74",Optional requirement only
Department of Health,Imperial College Healthcare NHS Trust,01/08/2014,Agency Nursing: Qualified,Investigative Sciences & C S,Reed,2979351,"41,977.78",Optional requirement only
Department of Health,Imperial College Healthcare NHS Trust,21/08/2014,Agency Nursing: Qualified,Investigative Sciences & C S,Reed,2992298,"33,374.42",Optional requirement only
Department of Health,Imperial College Healthcare NHS Trust,21/08/2014,Agency Nursing: Qualified,Investigative Sciences & C S,Reed,2992299,"31,114.99",Optional requirement only
Department of Health,Imperial College Healthcare NHS Trust,01/08/2014,Agency Nursing: Qualified,"Surg, Canc & Cardiovasc Div",Reed,2979346,"69,883.17",Optional requirement only
Department of Health,Imperial College Healthcare NHS Trust,01/08/2014,Agency Nursing: Qualified,"Surg, Canc & Cardiovasc Div",Reed,2979351,"58,275.87",Optional requirement only
Department of Health,Imperial College Healthcare NHS Trust,21/08/2014,Agency Nursing: Qualified,"Surg, Canc & Cardiovasc Div",Reed,2992298,"66,747.97",Optional requirement only
Department of Health,Imperial College Healthcare NHS Trust,21/08/2014,Agency Nursing: Qualified,"Surg, Canc & Cardiovasc Div",Reed,2992299,"79,683.84",Optional requirement only
Department of Health,Imperial College Healthcare NHS Trust,01/08/2014,Agency Scient & Prof Qualified,Investigative Sciences & C S,Reed,2979355,"49,150.36",Optional requirement only
Department of Health,Imperial College Healthcare NHS Trust,01/08/2014,Agency Scient & Prof Qualified,Investigative Sciences & C S,Reed,2979356,"64,005.28",Optional requirement only
Department of Health,Imperial College Healthcare NHS Trust,01/08/2014,Agency Scient & Prof Qualified,Investigative Sciences & C S,Reed,2980940,"41,226.89",Optional requirement only
Department of Health,Imperial College Healthcare NHS Trust,21/08/2014,Agency Scient & Prof Qualified,Investigative Sciences & C S,Reed,2992289,"66,231.19",Optional requirement only
Department of Health,Imperial College Healthcare NHS Trust,21/08/2014,Agency Scient & Prof Qualified,Investigative Sciences & C S,Reed,2992297,"51,647.75",Optional requirement only
Department of Health,Imperial College Healthcare NHS Trust,01/08/2014,Agency Scient & Prof Qualified,"Surg, Canc & Cardiovasc Div",Reed,2979355,"48,790.46",Optional requirement only
Department of Health,Imperial College Healthcare NHS Trust,26/08/2014,Chx Pharmacy Stock,Stock,Roche Products Ltd,2987296,"61,645.25",Optional requirement only
Department of Health,Imperial College Healthcare NHS Trust,26/08/2014,Chx Pharmacy Stock,Stock,Roche Products Ltd,2990713,"51,332.40",Optional requirement only
Department of Health,Imperial College Healthcare NHS Trust,01/08/2014,Hh Pharmacy Stock,Stock,Roche Products Ltd,2981155,"88,013.52",Optional requirement only
Department of Health,Imperial College Healthcare NHS Trust,12/08/2014,Other Research Exp - Non-Pay,Rd Medical Directorate,Royal Brompton And Harefield Nhs Trust,2973126,"207,346.00",Optional requirement only
Department of Health,Imperial College Healthcare NHS Trust,26/08/2014,"Books, Journals & Subscr",Finance Directorate,Royal Marsden Nhs Foundation Trust,2901991,"120,000.00",Optional requirement only
Department of Health,Imperial College Healthcare NHS Trust,01/08/2014,Clinical Managed Service Contr,Investigative Sciences & C S,Siemens Healthcare Diagnostics Ltd,2972074,"132,027.60",Optional requirement only
Department of Health,Imperial College Healthcare NHS Trust,12/08/2014,Isotopes,Investigative Sciences & C S,Siemens Healthcare Plc,2986500,"38,880.00",Optional requirement only
Department of Health,Imperial College Healthcare NHS Trust,07/08/2014,Miscellaneous Expenditure,Division Of Medicine,St Marys Development Trust,2981653,"50,514.00",Optional requirement only
Department of Health,Imperial College Healthcare NHS Trust,05/08/2014,Ext Contr Laundry,Directorate Of Strategy,Synergy Health Uk Ltd,2983637,"57,464.12",Optional requirement only
Department of Health,Imperial College Healthcare NHS Trust,05/08/2014,Ext Contr Laundry,Directorate Of Strategy,Synergy Health Uk Ltd,2983638,"63,031.48",Optional requirement only
Department of Health,Imperial College Healthcare NHS Trust,07/08/2014,Ext Contr Laundry,Directorate Of Strategy,Synergy Health Uk Ltd,2767791,"44,187.90",Optional requirement only
Department of Health,Imperial College Healthcare NHS Trust,07/08/2014,Ext Contr Laundry,Directorate Of Strategy,Synergy Health Uk Ltd,2767816,"48,016.56",Optional requirement only
Department of Health,Imperial College Healthcare NHS Trust,14/08/2014,Ext Contr Laundry,Directorate Of Strategy,Synergy Health Uk Ltd,2991100,"51,657.90",Optional requirement only
Department of Health,Imperial College Healthcare NHS Trust,05/08/2014,Laboratory Equipment,Investigative Sciences & C S,Sysmex Uk Ltd,2968591,"115,490.14",Optional requirement only
Department of Health,Imperial College Healthcare NHS Trust,14/08/2014,Laboratory Chemicals/ Reagents,Investigative Sciences & C S,Sysmex Uk Ltd,2990335,"33,869.89",Optional requirement only
Department of Health,Imperial College Healthcare NHS Trust,26/08/2014,Buildings-Additions-Purchased,Capital Summary,Temple Lifts Ltd,2980919,"37,078.46",Optional requirement only
Department of Health,Imperial College Healthcare NHS Trust,12/08/2014,Rent,Directorate Of Strategy,Thames Valley Charitable Housing,2985045,"40,817.74",Optional requirement only
Department of Health,Imperial College Healthcare NHS Trust,01/08/2014,Thames Valley Housing Assoc,Stock,Thames Valley Charitable Housing,2981105,"104,523.60",Optional requirement only
Department of Health,Imperial College Healthcare NHS Trust,05/08/2014,Organ Donor Expenses,Division Of Women And Children,The Anthony Nolan Trust,2881380,"30,990.00",Optional requirement only
Department of Health,Imperial College Healthcare NHS Trust,05/08/2014,Organ Donor Expenses,Division Of Women And Children,The Anthony Nolan Trust,2884597,"35,840.00",Optional requirement only
Department of Health,Imperial College Healthcare NHS Trust,21/08/2014,Organ Donor Expenses,Division Of Women And Children,The Anthony Nolan Trust,2966711,"34,540.00",Optional requirement only
Department of Health,Imperial College Healthcare NHS Trust,12/08/2014,Postage & Carriage,Directorate Of Strategy,Tnt Post London Ltd,2974713,"39,312.07",Optional requirement only
Department of Health,Imperial College Healthcare NHS Trust,12/08/2014,Postage & Carriage,Directorate Of Strategy,Tnt Post London Ltd,2988291,"35,238.96",Optional requirement only
Department of Health,Imperial College Healthcare NHS Trust,12/08/2014,Postage & Carriage,Directorate Of Strategy,Tnt Post London Ltd,2989286,"35,238.96",Optional requirement only
Department of Health,Imperial College Healthcare NHS Trust,26/08/2014,Med & Surg Equip General,"Surg, Canc & Cardiovasc Div",Triple Point Lease Partners,2987379,"44,584.44",Optional requirement only
Department of Health,Imperial College Healthcare NHS Trust,21/08/2014,It Eqpt-Additions,Capital Summary,Ultima Business Solutions Ltd,2977619,"37,290.00",Optional requirement only
Department of Health,Imperial College Healthcare NHS Trust,14/08/2014,Buildings-Additions-Purchased,Capital Summary,Varian Medical Systems Uk Ltd,2974056,"323,471.14",Optional requirement only
Department of Health,Imperial College Healthcare NHS Trust,26/08/2014,It Eqpt-Additions,Capital Summary,Waverley,2984872,"89,280.00",Optional requirement only
Department of Health,Imperial College Healthcare NHS Trust,21/08/2014,Other Research Exp - Non-Pay,Rd Medical Directorate,West London Mental Health Nhs Trust,2980763,"88,630.00",Optional requirement only
Department of Health,Imperial College Healthcare NHS Trust,11/08/2014,Services Received - Nhsts,Division Of Medicine,West London Mental Health Nhs Trust,2902604,"46,000.00",Optional requirement only
Department of Health,Imperial College Healthcare NHS Trust,21/08/2014,Services Received - Nhsts,Division Of Medicine,West London Mental Health Nhs Trust,2923505,"46,000.00",Optional requirement only
Department of Health,Imperial College Healthcare NHS Trust,21/08/2014,Services Received - Nhsts,Division Of Medicine,West London Mental Health Nhs Trust,2944491,"46,000.00",Optional requirement only
Department of Health,Imperial College Healthcare NHS Trust,21/08/2014,Services Received - Nhsts,Division Of Medicine,West London Mental Health Nhs Trust,2987930,"46,000.00",Optional requirement only
Department of Health,Imperial College Healthcare NHS Trust,21/08/2014,Services Received - Nhsts,Division Of Medicine,West London Mental Health Nhs Trust,2989320,"46,000.00",Optional requirement only
Department of Health,Imperial College Healthcare NHS Trust,26/08/2014,Services Received - Nhsts,Division Of Medicine,West London Mental Health Nhs Trust,2983828,"33,445.84",Optional requirement only
Department of Health,Imperial College Healthcare NHS Trust,14/08/2014,Miscellaneous Expenditure,Division Of Medicine,West Middlesex University Hospital Nhs Trust,2790283,"90,957.00",Optional requirement only
Department of Health,Imperial College Healthcare NHS Trust,14/08/2014,Miscellaneous Expenditure,Division Of Medicine,West Middlesex University Hospital Nhs Trust,2854442,"69,265.00",Optional requirement only
Department of Health,Imperial College Healthcare NHS Trust,07/08/2014,Other Research Exp - Non-Pay,Rd Medical Directorate,West Middlesex University Hospital Nhs Trust,2967923,"78,907.00",Optional requirement only
,,,,,,Sum:,"24,041,904.17",
